bitfinex/quotes_SOLUSD_20250708
["timestamp","ask_amount","ask_price","bid_price","bid_amount"]
[1752000249670,124.52563684,152.61,152.59,4.83079057]
[1752000249870,90.07882291,152.61,152.6,9.65179403]
[1752000250070,73.22323213,152.61,152.6,9.65179403]
[1752000250498,79.77588267,152.61,152.6,9.65179403]
[1752000252787,73.22323213,152.61,152.6,4.83079057]
[1752000254504,31.78323213,152.62,152.6,4.83079057]
[1752000254678,31.78323213,152.62,152.61,4.83079057]
[1752000254878,38.33545333,152.62,152.61,4.83079057]
[1752000255082,12.33545333,152.62,152.61,4.83079057]
[1752000255286,5.78323213,152.62,152.61,4.83079057]
[1752000256102,73.95191582,152.63,152.61,4.83079057]
[1752000256307,5.78323213,152.62,152.58,5.78323213]
[1752000256504,5.78323213,152.62,152.59,4.79562316]
[1752000256680,73.95191582,152.63,152.6,4.79562316]
[1752000256879,5.78323213,152.62,152.61,4.79562316]
[1752000257992,0.86283725,152.62,152.61,4.79562316]
[1752000258305,7.41505845,152.62,152.61,4.79562316]
[1752000259094,5.78323213,152.62,152.61,4.79562316]
[1752000259779,26.0,152.64,152.61,4.79562316]
[1752000260001,31.78323213,152.63,152.62,4.79562316]
[1752000260392,5.78323213,152.63,152.62,4.79562316]
[1752000261207,32.55105471,152.65,152.62,4.79562316]
[1752000261507,32.55105471,152.65,152.63,4.79562316]
[1752000261721,32.55105471,152.65,152.64,4.79562316]
[1752000262911,35.05415234,152.65,152.64,4.79562316]
[1752000263387,53.98812434,152.65,152.64,4.79562316]
[1752000264215,29.27092021,152.65,152.64,4.79562316]
[1752000264512,35.05415234,152.65,152.64,4.79562316]
[1752000264808,35.05415234,152.65,152.64,4.79038656]
[1752000265190,28.49388078,152.65,152.64,4.79038656]
[1752000266011,5.78323213,152.66,152.64,4.79038656]
[1752000266321,155.63873005,152.67,152.65,4.79038656]
[1752000266501,5.78323213,152.66,152.61,5.78323213]
[1752000266809,5.78323213,152.65,152.62,4.79080912]
[1752000266992,0.14216157,152.66,152.63,4.79080912]
[1752000267192,265.35391836,152.67,152.64,4.79080912]
[1752000267392,265.35391836,152.67,152.65,4.79080912]
[1752000267594,265.6382415,152.67,152.66,4.79080912]
[1752000267785,50.7982415,152.67,152.66,4.79080912]
[1752000268188,34.42305319,152.67,152.66,4.79080912]
[1752000268495,34.42305319,152.67,152.6,12.33603769]
[1752000268496,40.20628532,152.67,152.6,12.33603769]
[1752000268806,5.78323213,152.64,152.61,4.79301803]
[1752000269112,5.78323213,152.65,152.62,4.79301803]
[1752000269411,153.28323213,152.66,152.61,5.78323213]
[1752000269608,159.83389877,152.66,152.62,4.79421113]
[1752000269808,159.83389877,152.66,152.61,12.33587129]
[1752000269999,159.83389877,152.66,152.62,4.79420758]
[1752000270312,159.83389877,152.66,152.61,12.33587129]
[1752000270530,5.78323213,152.64,152.62,4.79575431]
[1752000270814,5.78323213,152.63,152.57,5.78323213]
[1752000271007,5.78323213,152.61,152.57,5.78323213]
[1752000271213,5.78323213,152.62,152.58,5.78323213]
[1752000272614,6.5509335,152.65,152.61,5.78323213]
[1752000272916,12.33416563,152.65,152.61,5.78323213]
[1752000273211,6.5509335,152.65,152.58,6.55379279]
[1752000273425,6.5509335,152.65,152.61,5.78323213]
[1752000273722,154.05058545,152.66,152.61,5.78323213]
[1752000273894,159.83381758,152.66,152.61,5.78323213]
[1752000274223,159.83381758,152.66,152.61,12.33583251]
[1752000275802,153.28323213,152.66,152.61,12.33583251]
[1752000275996,147.5,152.66,152.63,5.78323213]
[1752000278828,12.33336666,152.67,152.63,5.78323213]
[1752000278829,5.78323213,152.67,152.63,12.33501322]
[1752000279721,32.5314,152.7,152.63,6.55178109]
[1752000279722,6.54896924,152.7,152.63,6.55178109]
[1752000279909,5.78323213,152.68,152.64,5.78323213]
[1752000280228,5.78323213,152.68,152.63,12.33501322]
[1752000280429,5.78323213,152.67,152.63,12.33501322]
[1752000281012,5.78323213,152.66,152.62,12.33532752]
[1752000281207,5.78323213,152.64,152.58,1.0718]
[1752000281525,5.78323213,152.64,152.6,5.78323213]
[1752000281898,5.78323213,152.64,152.58,60.7318]
[1752000281899,5.78323213,152.65,152.61,12.33588267]
[1752000283030,5.78323213,152.67,152.62,5.78323213]
[1752000283203,149.1176,152.71,152.63,52.613972]
[1752000283405,5.78323213,152.7,152.65,5.78323213]
[1752000283821,13.94922915,152.71,152.66,12.33333189]
[1752000284004,4.8847379,152.7,152.66,12.33333189]
[1752000284198,4.8847379,152.69,152.66,6.55009976]
[1752000284511,4.8847379,152.68,152.66,12.33333189]
[1752000284716,4.8847379,152.67,152.66,12.33333189]
[1752000285016,4.8847379,152.67,152.65,5.78323213]
[1752000285321,4.8847379,152.66,152.64,5.78323213]
[1752000285506,4.8847379,152.65,152.64,5.78323213]
[1752000286025,6.54931968,152.69,152.64,4.85671235]
[1752000286226,6.54931968,152.69,152.65,4.85671235]
[1752000286401,12.33255181,152.69,152.66,4.85671235]
[1752000286597,12.33255181,152.69,152.67,4.85671235]
[1752000286815,5.78323213,152.69,152.68,4.85671235]
[1752000287024,5.78323213,152.7,152.68,4.85671235]
[1752000287242,6.54878847,152.7,152.69,4.85671235]
[1752000287411,12.3320206,152.7,152.69,4.85671235]
[1752000287724,6.548536,152.71,152.69,4.85671235]
[1752000287930,5.78323213,152.7,152.65,12.33402396]
[1752000288117,5.78323213,152.69,152.66,9.71948795]
[1752000288425,5.78323213,152.69,152.67,9.71948795]
[1752000288634,5.78323213,152.69,152.68,9.71948795]
[1752000288937,5.78323213,152.7,152.65,12.33402396]
[1752000289112,5.78323213,152.7,152.65,5.78323213]
[1752000289317,5.78323213,152.7,152.66,5.78323213]
[1752000289613,5.78323213,152.7,152.65,5.78323213]
[1752000290035,4.88936547,152.69,152.65,5.78323213]
[1752000290330,4.88936547,152.68,152.64,33.68]
[1752000290505,4.88936547,152.67,152.66,5.78323213]
[1752000290923,5.78323213,152.7,152.66,4.86049917]
[1752000291126,6.54793085,152.72,152.67,4.86049917]
[1752000291330,5.78323213,152.7,152.68,4.86049917]
[1752000291519,5.78323213,152.7,152.69,4.86049917]
[1752000292937,5.78323213,152.7,152.66,6.55038166]
[1752000293233,12.33204616,152.7,152.65,12.33405011]
[1752000293603,12.33204616,152.7,152.64,33.66]
[1752000293604,6.54855333,152.71,152.64,31.78323213]
[1752000293831,6.54811039,152.72,152.66,5.78323213]
[1752000294013,7.91725855,152.73,152.67,5.78323213]
[1752000294231,5.78323213,152.72,152.67,5.78323213]
[1752000294904,5.78323213,152.7,152.66,26.0]
[1752000295125,5.84323213,152.7,152.66,26.0]
[1752000295519,5.84323213,152.7,152.66,31.78323213]
[1752000296234,12.39212393,152.7,152.66,26.0]
[1752000297426,12.39212393,152.7,152.66,31.78323213]
[1752000297931,0.06,152.7,152.67,5.78323213]
[1752000298522,3.14,152.7,152.67,5.78323213]
[1752000299041,3.14,152.7,152.68,5.78323213]
[1752000299246,3.14,152.7,152.69,26.0]
[1752000299421,3.14,152.7,152.69,31.78323213]
[1752000299611,3.14,152.7,152.69,26.0]
[1752000299813,9.68886078,152.7,152.67,5.78323213]
[1752000300022,9.68886078,152.7,152.66,5.78323213]
[1752000300534,15.47209291,152.7,152.65,26.0]
[1752000300738,5.78323213,152.68,152.63,6.58165676]
[1752000300935,6.55007532,152.67,152.63,5.81323213]
[1752000301640,12.3330417,152.68,152.63,12.36492485]
[1752000301842,12.3330417,152.68,152.64,5.78323213]
[1752000302134,12.3330417,152.68,152.63,6.58169272]
[1752000302335,12.3330417,152.68,152.63,12.36492485]
[1752000303445,5.78323213,152.65,152.63,0.03]
[1752000303643,5.78323213,152.64,152.63,0.03]
[1752000304138,1.5381,152.66,152.63,0.03]
[1752000304440,7.32133213,152.66,152.63,0.03]
[1752000304625,1.5381,152.66,152.63,0.03]
[1752000304829,5.78323213,152.65,152.63,0.03]
[1752000305133,7.32133213,152.66,152.63,0.03]
[1752000305443,1.5381,152.66,152.63,0.03]
[1752000305742,1.5381,152.66,152.63,5.81323213]
[1752000306517,6.5621,152.67,152.63,5.81323213]
[1752000306739,105.71259947,152.69,152.65,5.78323213]
[1752000307045,105.71259947,152.69,152.63,0.03]
[1752000307046,67.38,152.69,152.66,5.78323213]
[1752000307243,4.7826,152.7,152.67,5.78323213]
[1752000307547,3.14,152.7,152.68,5.78323213]
[1752000307934,3.14,152.7,152.69,5.78323213]
[1752000308827,3.14,152.7,152.69,34.65056119]
[1752000309224,0.06,152.7,152.69,34.65056119]
[1752000309433,0.06,152.7,152.69,41.19977855]
[1752000309626,0.06,152.7,152.69,60.13375055]
[1752000309840,1e-08,152.7,152.69,41.19977855]
[1752000311140,1e-08,152.7,152.69,32.54921736]
[1752000311460,1e-08,152.7,152.69,8.65056119]
[1752000311617,1e-08,152.7,152.69,15.19977855]
[1752000313830,1e-08,152.7,152.69,6.54921736]
[1752000314153,1e-08,152.7,152.69,15.19977855]
[1752000314852,1e-08,152.7,152.69,6.54921736]
[1752000315149,1e-08,152.7,152.69,15.19977855]
[1752000315928,1e-08,152.7,152.69,6.54921736]
[1752000316134,1e-08,152.7,152.69,41.19977855]
[1752000317449,1e-08,152.7,152.69,46.05389718]
[1752000318062,1e-08,152.7,152.69,41.19977855]
[1752000324967,1e-08,152.7,152.63,16.40855701]
[1752000325163,1e-08,152.7,152.67,8.65056119]
[1752000327581,8.6505612,152.7,152.66,42.37056119]
[1752000327949,8.6505612,152.7,152.65,6.55079775]
[1752000328152,15.19952561,152.7,152.66,8.65056119]
[1752000328784,8.6505612,152.7,152.66,15.20095096]
[1752000330877,5.77144407,152.7,152.66,12.32183383]
[1752000331174,1e-08,152.7,152.66,12.32183383]
[1752000331361,1e-08,152.7,152.66,6.55038977]
[1752000331569,5.77144407,152.7,152.66,12.32183383]
[1752000334373,1e-08,152.7,152.66,12.32183383]
[1752000334576,1e-08,152.7,152.67,5.77144406]
[1752000336159,1e-08,152.7,152.67,12.32150525]
[1752000337081,1e-08,152.7,152.68,5.77144406]
[1752000337269,1e-08,152.7,152.69,5.77144406]
[1752000337583,1e-08,152.7,152.67,6.55006119]
[1752000337584,1e-08,152.7,152.67,5.77144406]
[1752000337956,13.75244407,152.7,152.65,71.9822649]
[1752000338186,13.75244407,152.7,152.66,4.85926189]
[1752000338363,13.75244407,152.7,152.66,10.63070595]
[1752000338557,13.75244407,152.7,152.67,4.85926189]
[1752000338756,13.75244407,152.7,152.63,0.03]
[1752000338757,5.77144406,152.68,152.63,0.03]
[1752000338981,5.77144406,152.67,152.63,11.44288411]
[1752000339163,5.77144406,152.67,152.66,0.03]
[1752000339362,5.77144406,152.68,152.66,0.03]
[1752000340169,12.3211674,152.68,152.66,0.03]
[1752000340991,5.77144406,152.67,152.66,0.03]
[1752000342490,12.32151938,152.67,152.66,0.03]
[1752000343881,6.54964631,152.68,152.66,0.03]
[1752000344080,5.77144406,152.67,152.66,0.03]
[1752000345187,30.97116824,152.67,152.66,0.03]
[1752000346792,25.19972418,152.67,152.66,0.03]
[1752000346963,30.97116824,152.67,152.66,0.03]
[1752000347794,25.19972418,152.67,152.66,0.03]
[1752000347993,30.97116824,152.67,152.66,0.03]
[1752000353394,73.74982719,152.68,152.66,0.03]
[1752000353603,79.52127125,152.68,152.66,0.03]
[1752000354483,24.42109292,152.67,152.66,0.03]
[1752000355283,24.70541606,152.67,152.66,0.03]
[1752000355484,39.33739138,152.67,152.66,0.03]
[1752000358502,44.7275425,152.67,152.66,0.03]
[1752000359001,39.33739138,152.67,152.66,0.03]
[1752000360677,55.71257969,152.67,152.63,0.03]
[1752000360892,24.42109292,152.64,152.63,0.03]
[1752000361177,91.56109292,152.64,152.63,0.03]
[1752000361594,98.1124556,152.64,152.63,0.03]
[1752000361792,5.77144406,152.65,152.63,0.03]
[1752000362005,18.64964886,152.65,152.63,0.03]
[1752000362178,24.42109292,152.65,152.63,0.03]
[1752000363603,5.77144406,152.64,152.63,0.03]
[1752000365401,8.85144406,152.64,152.63,0.03]
[1752000367091,15.40280674,152.64,152.63,0.03]
[1752000367601,101.1724556,152.64,152.63,0.03]
[1752000371086,101.45677874,152.64,152.63,0.03]
[1752000372101,107.2282228,152.64,152.63,0.03]
[1752000372505,95.68533468,152.64,152.63,0.03]
[1752000372714,101.45677874,152.64,152.63,0.03]
[1752000374417,107.2282228,152.64,152.63,0.03]
[1752000375301,26.0,152.61,152.54,5.77144406]
[1752000375506,26.0,152.61,152.53,12.32751747]
[1752000375507,5.77144406,152.58,152.53,12.32751747]
[1752000376396,12.325391,152.58,152.53,12.32751747]
[1752000376601,5.77144406,152.58,152.53,12.32751747]
[1752000377498,5.77144406,152.58,152.54,5.77144406]
[1752000377690,18.64964886,152.58,152.54,5.77144406]
[1752000378414,5.77144406,152.59,152.55,5.77144406]
[1752000378719,147.5,152.6,152.57,5.77144406]
[1752000379905,147.5,152.6,152.57,12.32562284]
[1752000380099,147.5,152.6,152.58,5.77144406]
[1752000380597,147.5,152.6,152.59,5.77144406]
[1752000381224,147.5,152.6,152.58,5.77144406]
[1752000382018,147.5,152.6,152.58,12.32524912]
[1752000384829,147.5,152.6,152.59,5.77144406]
[1752000385210,18.64964886,152.62,152.59,5.77144406]
[1752000388234,18.64964886,152.62,152.56,6.55479811]
[1752000388411,24.42109292,152.62,152.58,5.77144406]
[1752000389641,24.42109292,152.62,152.58,12.3252665]
[1752000390141,24.42109292,152.62,152.58,6.55382244]
[1752000390337,24.42109292,152.62,152.58,12.3252665]
[1752000392547,18.64964886,152.62,152.58,12.3252665]
[1752000392748,24.42109292,152.62,152.58,12.3252665]
[1752000394832,24.42109292,152.62,152.56,6.55479811]
[1752000395140,24.42109292,152.62,152.58,5.77144406]
[1752000397944,30.9733244,152.62,152.57,6.55409145]
[1752000398127,30.9733244,152.62,152.57,12.32553551]
[1752000398328,30.9733244,152.62,152.58,5.77144406]
[1752000399842,30.9733244,152.62,152.58,12.32537745]
[1752000400053,24.42109292,152.62,152.58,12.32537745]
[1752000402048,30.97331417,152.62,152.58,12.32537745]
[1752000404635,30.97331417,152.62,152.58,5.77144406]
[1752000405051,30.97331417,152.62,152.57,6.55416706]
[1752000405236,30.97331417,152.62,152.58,5.77144406]
[1752000407055,30.97331417,152.62,152.58,12.32531838]
[1752000408156,18.64964886,152.62,152.58,12.32531838]
[1752000408333,24.42109292,152.62,152.58,12.32531838]
[1752000409805,30.97337985,152.62,152.58,6.55387432]
[1752000410065,30.97337985,152.62,152.58,12.32531838]
[1752000410272,30.97337985,152.62,152.57,5.77144406]
[1752000410560,30.97337985,152.62,152.58,5.77144406]
[1752000411265,30.97337985,152.62,152.56,6.55479811]
[1752000411565,5.77144406,152.61,152.57,12.32566619]
[1752000411972,18.64964886,152.62,152.58,5.77144406]
[1752000412135,147.56,152.63,152.6,5.77144406]
[1752000412456,147.56,152.63,152.61,5.77144406]
[1752000412866,147.56,152.63,152.61,3.69614995]
[1752000414167,147.56,152.63,152.61,10.24867727]
[1752000414775,147.56,152.63,152.61,3.69614995]
[1752000414953,147.56,152.63,152.6,12.32835834]
[1752000416341,147.56,152.63,152.6,5.77542313]
[1752000417268,147.56,152.63,152.61,5.77542313]
[1752000417657,0.06,152.63,152.61,5.77542313]
[1752000419564,0.06,152.63,152.61,12.32803799]
[1752000419745,0.06,152.63,152.62,5.77542313]
[1752000421674,0.06,152.63,152.62,12.32764433]
[1752000421847,0.06,152.63,152.62,5.77542313]
[1752000422962,0.06,152.63,152.61,6.55233317]
[1752000423273,0.06,152.63,152.62,5.77542313]
[1752000424346,0.06,152.63,152.62,12.32764433]
[1752000425074,0.06,152.63,152.61,12.32807367]
[1752000426378,0.06,152.63,152.62,12.32764433]
[1752000427367,0.06,152.63,152.62,12.35764433]
[1752000429787,0.06,152.63,152.62,5.80542313]
[1752000433392,0.06,152.63,152.62,0.03]
[1752000434488,0.06,152.63,152.62,6.5822212]
[1752000434691,0.06,152.63,152.62,12.35764433]
[1752000434991,0.06,152.63,152.62,5.80542313]
[1752000435389,0.06,152.63,152.62,0.03]
[1752000438903,0.06,152.63,152.62,3.72578398]
[1752000439111,22.40543284,152.63,152.62,0.03]
[1752000439282,23.90863284,152.63,152.62,0.03]
[1752000439474,30.78815598,152.63,152.62,0.03]
[1752000440577,37.33994789,152.63,152.62,0.03]
[1752000441275,40.41994789,152.63,152.62,0.03]
[1752000444395,40.41994789,152.63,152.62,1e-08]
[1752000444580,0.28432314,152.61,152.53,0.03]
[1752000444796,3.69578398,152.54,152.53,0.03]
[1752000446976,5.78340764,152.54,152.53,0.03]
[1752000447201,6.55533855,152.55,152.53,0.03]
[1752000447498,5.78340764,152.54,152.53,0.03]
[1752000448293,147.5,152.56,152.53,0.03]
[1752000448500,147.5,152.56,152.54,5.78340764]
[1752000448800,30.98665537,152.59,152.54,5.78340764]
[1752000449307,5.78340764,152.58,152.54,5.78340764]
[1752000449682,5.78340764,152.58,152.54,12.33880783]
[1752000449995,5.78340764,152.59,152.54,12.33880783]
[1752000450397,5.78340764,152.59,152.55,5.78340764]
[1752000451199,153.28340764,152.6,152.56,5.78340764]
[1752000452600,147.5,152.6,152.57,12.33777612]
[1752000453314,5.78340764,152.61,152.57,12.33777612]
[1752000453606,24.71714886,152.62,152.58,5.78340764]
[1752000453813,150.64,152.63,152.59,5.78340764]
[1752000454119,156.42340764,152.63,152.59,5.78340764]
[1752000454859,156.42340764,152.63,152.59,12.33679753]
[1752000456797,150.64,152.63,152.6,5.78340764]
[1752000457110,150.64,152.63,152.61,5.78340764]
[1752000459020,150.64,152.63,152.6,5.78340764]
[1752000460131,150.64,152.63,152.61,5.78340764]
[1752000460430,147.56,152.63,152.61,5.78340764]
[1752000462042,0.06,152.63,152.61,12.33584555]
[1752000462356,0.06,152.63,152.62,33.4]
[1752000463231,0.06,152.63,152.62,45.73562884]
[1752000466138,0.06,152.63,152.62,39.18340764]
[1752000466337,0.06,152.63,152.62,45.73562884]
[1752000467047,0.06,152.63,152.62,39.9522212]
[1752000467344,0.06,152.63,152.62,45.73562884]
[1752000468424,0.06,152.63,152.62,33.4]
[1752000468824,5.84340764,152.63,152.62,33.4]
[1752000469873,5.84340764,152.63,152.59,12.33681829]
[1752000470036,5.84340764,152.63,152.6,33.4]
[1752000470550,5.84340764,152.63,152.6,39.18340764]
[1752000471050,0.06,152.63,152.6,39.18340764]
[1752000471235,0.06,152.63,152.62,0.03]
[1752000471434,0.06,152.63,152.62,33.43]
[1752000474941,0.06,152.63,152.62,0.03]
[1752000475148,0.06,152.63,152.62,33.43]
[1752000475730,0.06,152.63,152.62,0.03]
[1752000475929,5.84340764,152.63,152.62,33.43]
[1752000480957,0.06,152.63,152.62,33.43]
[1752000482232,0.06,152.63,152.62,39.21340764]
[1752000483044,0.06,152.63,152.62,45.76562884]
[1752000483245,0.06,152.63,152.62,39.21340764]
[1752000484060,0.06,152.63,152.62,45.76562884]
[1752000485242,0.06,152.63,152.62,39.9822212]
[1752000485451,0.06,152.63,152.62,45.76562884]
[1752000488260,0.06,152.63,152.62,39.9822212]
[1752000488439,0.06,152.63,152.62,45.76562884]
[1752000491841,0.06,152.63,152.62,39.21340764]
[1752000492985,0.06,152.63,152.62,33.43]
[1752000500660,3.75628911,152.63,152.62,33.41]
[1752000500985,24.03203797,152.63,152.62,33.41]
[1752000501153,1.6861,152.63,152.62,0.03]
[1752000501556,11.93418102,152.63,152.62,0.03]
[1752000502864,14.0169237,152.63,152.62,0.03]
[1752000503858,1.6861,152.63,152.62,0.03]
[1752000504082,0.06,152.63,152.62,0.03]
[1752000504768,3.14,152.63,152.62,0.03]
[1752000508302,0.06,152.63,152.62,0.03]
[1752000511396,0.06,152.63,152.62,5.80903179]
[1752000511783,0.06,152.63,152.62,12.36125299]
[1752000520105,0.06,152.63,152.62,12.64557613]
[1752000521206,0.06,152.63,152.62,38.64557613]
[1752000523609,0.06,152.63,152.62,38.36125299]
[1752000523791,0.06,152.63,152.62,71.74125299]
[1752000526015,0.06,152.63,152.62,71.72125299]
[1752000530392,0.06,152.63,152.62,38.36125299]
[1752000530597,0.06,152.63,152.62,71.72125299]
[1752000531293,0.06,152.63,152.62,65.9422212]
[1752000531492,0.06,152.63,152.62,0.03]
[1752000532015,0.06,152.63,152.62,33.39]
[1752000532813,0.06,152.63,152.62,0.03]
[1752000532995,0.06,152.63,152.62,33.39]
[1752000533520,0.06,152.63,152.62,0.03]
[1752000533691,0.06,152.63,152.62,33.39]
[1752000535321,0.06,152.63,152.62,0.03]
[1752000535612,0.06,152.63,152.62,33.39]
[1752000535821,24.48868065,152.63,152.62,0.03]
[1752000535992,24.48868065,152.63,152.62,33.39]
[1752000537004,24.48868065,152.63,152.62,0.03]
[1752000537304,24.48868065,152.63,152.62,33.39]
[1752000537502,18.70964886,152.63,152.62,33.39]
[1752000538019,24.48868065,152.63,152.62,0.03]
[1752000538320,24.48868065,152.63,152.62,33.39]
[1752000538504,18.70964886,152.63,152.62,33.39]
[1752000539620,24.48868065,152.63,152.62,33.39]
[1752000539818,27.56868065,152.63,152.62,33.39]
[1752000541020,3.14,152.63,152.62,33.39]
[1752000542725,0.06,152.63,152.62,33.39]
[1752000544206,0.06,152.63,152.62,39.9422212]
[1752000544525,0.06,152.63,152.62,45.72125299]
[1752000547015,0.06,152.63,152.62,39.9422212]
[1752000547198,0.06,152.63,152.62,45.72125299]
[1752000550824,0.06,152.63,152.62,12.36125299]
[1752000551032,0.06,152.63,152.62,45.72125299]
[1752000553111,0.06,152.63,152.62,39.9422212]
[1752000553430,0.06,152.63,152.62,45.72125299]
[1752000554533,0.06,152.63,152.62,39.9422212]
[1752000555533,0.06,152.63,152.62,33.39]
[1752000555839,5.83903179,152.63,152.62,33.39]
[1752000557719,0.06,152.63,152.62,33.39]
[1752000558636,0.06,152.63,152.62,0.03]
[1752000559013,0.06,152.63,152.62,33.39]
[1752000563335,0.06,152.63,152.62,45.72125299]
[1752000563537,0.06,152.63,152.62,33.39]
[1752000564437,24.48868065,152.63,152.62,0.03]
[1752000564737,24.48868065,152.63,152.62,33.39]
[1752000564917,24.48868065,152.63,152.62,0.03]
[1752000565233,185.0362957,152.63,152.62,0.03]
[1752000566537,188.1162957,152.63,152.62,0.03]
[1752000568117,167.954272,152.62,152.51,9.11241059]
[1752000568316,5.77903179,152.57,152.54,6.55562017]
[1752000568529,5.77903179,152.56,152.55,33.36]
[1752000568818,18.64964886,152.58,152.55,33.36]
[1752000568819,5.77903179,152.57,152.55,33.36]
[1752000569540,5.77903179,152.57,152.54,6.55562017]
[1752000569843,5.77903179,152.57,152.55,33.36]
[1752000570343,18.64964886,152.58,152.55,33.36]
[1752000570344,5.77903179,152.56,152.55,33.36]
[1752000570722,5.77903179,152.56,152.53,0.03]
[1752000570923,5.77903179,152.55,152.54,33.36]
[1752000571137,12.65504499,152.58,152.54,33.36]
[1752000571432,24.42868065,152.55,152.54,33.36]
[1752000572034,24.42868065,152.55,152.53,33.39]
[1752000572441,24.42868065,152.54,152.53,0.03]
[1752000573823,30.98433818,152.54,152.53,0.03]
[1752000574728,6.55540278,152.55,152.53,0.03]
[1752000574919,5.77903179,152.54,152.53,0.03]
[1752000577422,153.27903179,152.54,152.53,0.03]
[1752000585849,171.92868065,152.54,152.53,0.03]
[1752000586224,166.14964886,152.54,152.53,0.03]
[1752000586836,147.5,152.54,152.53,0.03]
[1752000589259,149.0203,152.57,152.53,0.03]
[1752000589549,147.5,152.57,152.54,39.15903179]
[1752000589755,147.5,152.57,152.55,5.77903179]
[1752000590652,147.5,152.57,152.54,33.38]
[1752000590960,153.27903179,152.57,152.54,33.38]
[1752000591345,153.27903179,152.57,152.54,39.93523298]
[1752000592751,147.5,152.61,152.56,5.77903179]
[1752000592950,24.42868065,152.6,152.57,33.36]
[1752000593155,18.64964886,152.6,152.57,39.13903179]
[1752000593649,147.5,152.61,152.59,5.77903179]
[1752000593854,147.5,152.61,152.6,33.36]
[1752000594058,18.70964886,152.62,152.6,33.36]
[1752000594262,24.48868065,152.62,152.6,33.36]
[1752000594466,24.48868065,152.62,152.59,33.36]
[1752000594467,5.77903179,152.61,152.59,33.36]
[1752000594753,5.77903179,152.6,152.59,33.36]
[1752000594990,18.70964886,152.62,152.59,33.36]
[1752000595133,18.70964886,152.62,152.61,5.77903179]
[1752000595134,0.06,152.62,152.61,5.77903179]
[1752000595331,0.06,152.62,152.59,39.91316025]
[1752000595542,5.83903179,152.62,152.59,33.36]
[1752000595858,5.83903179,152.62,152.59,39.91342575]
[1752000596242,0.06,152.62,152.59,39.91342575]
[1752000596765,0.06,152.62,152.59,45.69245754]
[1752000598161,5.77903179,152.61,152.59,33.36]
[1752000598458,5.77903179,152.6,152.59,33.36]
[1752000598644,5.77903179,152.6,152.55,5.77903179]
[1752000598848,5.77903179,152.59,152.56,33.44]
[1752000600466,5.77903179,152.6,152.56,39.9946301]
[1752000600767,24.42868065,152.6,152.56,39.9946301]
[1752000600958,24.42868065,152.6,152.56,6.5546301]
[1752000601154,24.42868065,152.6,152.57,33.44]
[1752000601663,6.55289443,152.61,152.57,33.44]
[1752000601855,18.70964886,152.62,152.59,5.77903179]
[1752000602061,0.06,152.62,152.6,39.19903179]
[1752000602266,0.06,152.62,152.6,33.42]
[1752000606246,5.83903179,152.62,152.6,33.42]
[1752000606446,18.64964886,152.6,152.56,5.77903179]
[1752000606645,5.77903179,152.59,152.57,33.4]
[1752000606966,5.77903179,152.59,152.58,33.4]
[1752000607464,5.77903179,152.6,152.58,33.4]
[1752000610660,5.77903179,152.6,152.59,33.38]
[1752000611158,12.33211173,152.6,152.54,5.77903179]
[1752000611362,5.77903179,152.58,152.55,33.38]
[1752000611987,18.64964886,152.59,152.55,39.15903179]
[1752000612282,24.42868065,152.59,152.56,33.38]
[1752000613279,24.42868065,152.59,152.56,39.15903179]
[1752000613677,24.42868065,152.59,152.56,33.38]
[1752000615080,24.42868065,152.59,152.57,33.38]
[1752000617664,153.9917,152.61,152.58,5.77903179]
[1752000617987,153.9917,152.61,152.57,39.93431022]
[1752000617988,0.06,152.62,152.6,5.77903179]
[1752000618162,0.06,152.62,152.61,33.36]
[1752000619769,5.83903179,152.62,152.61,33.36]
[1752000620180,0.06,152.62,152.61,33.36]
[1752000622488,0.06,152.62,152.61,45.69168233]
[1752000625070,0.06,152.62,152.61,39.91265054]
[1752000625298,0.06,152.62,152.61,45.69168233]
[1752000626185,0.06,152.62,152.61,39.91265054]
[1752000626591,0.06,152.62,152.61,45.69168233]
[1752000631809,0.06,152.62,152.61,39.91265054]